bitfinex/quotes_SOLUSD_20241127
["timestamp","ask_amount","ask_price","bid_price","bid_amount"]
[1732715203967,8.73030618,237.13,237.05,9.05258497]
[1732715204183,8.73030618,237.13,237.06,8.21120738]
[1732715204371,0.5190988,237.13,237.08,12.81773953]
[1732715204684,0.5190988,237.13,237.09,0.84124325]
[1732715205001,0.5190988,237.13,237.09,5.05884325]
[1732715205365,0.5190988,237.13,237.09,17.87658278]
[1732715205566,0.5190988,237.13,237.1,12.81773953]
[1732715205873,0.5190988,237.13,237.09,17.87658278]
[1732715207483,0.5190988,237.13,237.09,5.05884325]
[1732715207670,0.5190988,237.13,237.09,0.84124325]
[1732715207874,13.33683833,237.13,237.05,34.08433261]
[1732715208074,12.81773953,237.11,237.05,20.4254]
[1732715209185,12.81773953,237.1,237.02,12.81773953]
[1732715209381,12.81773953,237.1,237.03,12.81773953]
[1732715209589,13.33683833,237.13,237.06,12.81773953]
[1732715209985,0.5190988,237.13,237.06,12.81773953]
[1732715210185,0.5190988,237.13,237.08,12.81773953]
[1732715210369,0.5190988,237.13,237.06,13.65904235]
[1732715210370,13.33683833,237.13,237.06,13.65904235]
[1732715210685,0.5190988,237.13,237.07,12.81773953]
[1732715210884,13.33683833,237.13,237.05,12.81773953]
[1732715211287,13.33683833,237.13,237.01,0.84127662]
[1732715211288,12.81773953,237.1,237.03,12.81773953]
[1732715211597,12.81773953,237.12,237.04,12.81773953]
[1732715212185,12.81773953,237.12,237.05,12.81773953]
[1732715213180,17.03493953,237.12,237.04,12.81773953]
[1732715213383,12.81773953,237.09,237.02,17.03663953]
[1732715214201,12.81773953,237.1,237.03,12.81773953]
[1732715214886,12.81773953,237.1,237.03,17.03653953]
[1732715215281,12.81773953,237.08,237.01,12.81773953]
[1732715215472,12.81773953,237.07,237.01,4.2191]
[1732715215673,12.81773953,237.09,237.02,12.81773953]
[1732715216606,0.5190988,237.13,236.97,12.81773953]
[1732715216607,12.81773953,237.05,236.97,12.81773953]
[1732715216786,12.81773953,237.09,237.02,12.81773953]
[1732715216981,12.81773953,237.1,237.03,12.81773953]
[1732715217610,12.81773953,237.11,237.04,12.81773953]
[1732715218298,12.81773953,237.1,237.03,12.81773953]
[1732715218494,0.5190988,237.13,237.05,12.81773953]
[1732715218800,0.5190988,237.13,237.08,12.81773953]
[1732715219175,0.5190988,237.13,237.06,12.81773953]
[1732715219398,17.55393833,237.13,237.06,12.81773953]
[1732715219779,12.81773953,237.12,237.05,12.81773953]
[1732715220902,12.81773953,237.12,237.05,17.03613953]
[1732715221100,12.81773953,237.11,237.05,4.2184]
[1732715221894,12.81773953,237.12,237.05,17.03613953]
[1732715224408,12.81773953,237.11,237.04,32.32973953]
[1732715226102,12.81773953,237.11,237.04,19.512]
[1732715226988,12.81773953,237.11,237.04,32.32973953]
[1732715228210,12.81773953,237.11,237.04,19.512]
[1732715228415,8.2059515,237.1,237.04,19.512]
[1732715228988,8.2059515,237.1,237.04,4.2186]
[1732715229185,8.2059515,237.09,237.02,4.219]
[1732715229492,8.2059515,237.09,237.02,12.4249515]
[1732715229799,8.2059515,237.05,237.0,0.84143231]
[1732715230021,8.2059515,237.03,236.95,8.2059515]
[1732715230192,8.2059515,237.02,236.94,28.3724515]
[1732715230394,65.367606,237.12,236.95,0.84165047]
[1732715230589,65.367606,237.12,236.94,20.1665]
[1732715230590,8.2059515,237.03,236.94,20.1665]
[1732715230786,8.2059515,237.01,236.94,28.3724515]
[1732715231093,8.2059515,237.02,236.95,8.2059515]
[1732715231294,8.2059515,237.02,236.96,4.2201]
[1732715231706,8.2059515,237.0,236.94,20.1665]
[1732715232190,8.2059515,237.0,236.94,15.9461]
[1732715232396,10.5448,237.09,236.89,0.84178328]
[1732715232397,12.83435473,236.95,236.89,0.84178328]
[1732715232586,12.83435473,236.93,236.88,15.4166]
[1732715232791,12.83435473,236.93,236.87,4.2216]
[1732715235117,25.66870946,236.88,236.76,4.2236]
[1732715235411,25.66870946,236.88,236.72,15.9911]
[1732715235412,12.83435473,236.8,236.72,33.04975473]
[1732715235993,12.83435473,236.8,236.72,20.2154]
[1732715236194,12.83435473,236.78,236.7,17.05895473]
[1732715237730,6.3556,236.92,236.75,12.83435473]
[1732715237907,4.221,236.91,236.81,12.83435473]
[1732715238106,2.22725442,236.93,236.87,12.83435473]
[1732715238304,2.22725442,236.93,236.89,12.83435473]
[1732715238499,2.22725442,236.93,236.91,12.83435473]
[1732715238806,12.83435473,237.01,236.92,0.84187718]
[1732715239112,12.83435473,237.01,236.93,12.83435473]
[1732715239318,12.83435473,237.01,236.94,0.84180219]
[1732715240824,12.83435473,236.99,236.91,12.83435473]
[1732715241319,17.05395473,236.99,236.91,12.83435473]
[1732715242297,17.05365473,237.01,236.93,12.83435473]
[1732715242494,12.83435473,237.04,236.97,12.83435473]
[1732715242711,12.83435473,237.04,236.91,4.2209]
[1732715242712,12.83435473,237.04,236.98,0.84166117]
[1732715242908,12.83435473,237.04,236.96,13.67601307]
[1732715243127,12.83435473,236.98,236.91,17.05525473]
[1732715243694,12.83435473,236.98,236.89,16.46294969]
[1732715243899,12.83435473,236.98,236.89,32.67695473]
[1732715243900,17.05405473,236.98,236.89,32.67695473]
[1732715244507,12.83435473,236.96,236.89,32.67695473]
[1732715245309,12.83435473,236.96,236.89,15.6213]
[1732715245627,12.83435473,236.96,236.89,19.8426]
[1732715246309,10.5466,237.05,236.89,15.6213]
[1732715246310,12.83435473,236.94,236.89,15.6213]
[1732715247348,12.83435473,236.96,236.89,15.6213]
[1732715247724,12.83435473,236.94,236.89,15.6213]
[1732715248224,12.83435473,236.94,236.85,12.83435473]
[1732715248532,12.83435473,236.92,236.84,16.247]
[1732715248925,4.22,236.97,236.84,16.247]
[1732715248926,12.83435473,236.94,236.85,13.67654408]
[1732715249409,12.83435473,236.94,236.86,4.2219]
[1732715249603,12.83435473,236.94,236.87,13.67633035]
[1732715249803,12.83435473,236.94,236.87,12.83435473]
[1732715250415,12.83435473,236.94,236.86,4.2219]
[1732715250607,12.83435473,236.94,236.85,13.67632527]
[1732715250608,17.05495473,236.94,236.85,12.83435473]
[1732715251213,17.05495473,236.94,236.85,17.05635473]
[1732715251525,17.05495473,236.94,236.85,4.222]
[1732715251526,12.83435473,236.92,236.85,4.222]
[1732715251727,12.83435473,236.92,236.84,16.247]
[1732715251919,12.83435473,236.92,236.84,20.4692]
[1732715253128,17.05515473,236.92,236.84,20.4692]
[1732715253445,12.83435473,236.96,236.86,12.83435473]
[1732715253809,12.83435473,236.98,236.9,12.83435473]
[1732715254005,12.83435473,236.98,236.91,0.84188902]
[1732715254312,12.83435473,237.02,236.94,12.83435473]
[1732715254513,12.83435473,237.02,236.95,0.84175504]
[1732715254729,12.83435473,237.04,236.96,12.83435473]
[1732715255027,12.83435473,237.04,236.97,5.06158691]
[1732715255620,12.83435473,237.04,236.97,4.2199]
[1732715256527,12.83435473,237.04,236.96,13.67605589]
[1732715256528,12.83435473,237.02,236.96,0.84170116]
[1732715256844,12.83435473,237.02,236.95,21.14266908]
[1732715257636,6.6364,237.09,236.95,21.14266908]
[1732715257637,12.83435473,237.04,236.96,12.83435473]
[1732715257812,12.83435473,237.04,236.97,0.8416468]
[1732715258225,12.83435473,237.04,236.95,20.3009]
[1732715258431,12.83435473,237.02,236.95,20.3009]
[1732715258634,12.83435473,237.02,236.96,5.06167369]
[1732715259730,10.5443,237.1,237.0,12.83435473]
[1732715259731,12.83435473,237.08,237.0,12.83435473]
[1732715260036,12.83435473,237.08,237.01,0.841529]
[1732715260219,12.83435473,237.1,237.02,12.83435473]
[1732715260412,12.83435473,237.1,237.03,0.84139003]
[1732715260723,0.5190988,237.13,237.06,12.83435473]
[1732715260925,0.5190988,237.13,237.07,0.84126036]
[1732715261225,12.83435473,237.12,237.05,0.84126261]
[1732715261838,0.5190988,237.13,237.06,17.05265473]
[1732715262139,0.5190988,237.13,237.12,12.83435473]
[1732715262518,0.5190988,237.13,237.12,13.67530757]
[1732715263242,12.83435473,237.25,237.13,15.3529]
[1732715263544,12.83435473,237.26,237.18,12.83435473]
[1732715263737,12.83435473,237.26,237.18,17.05035473]
[1732715264439,20.48690759,237.26,237.18,24.70290759]
[1732715264637,20.48690759,237.28,237.21,20.48690759]
[1732715264846,20.48690759,237.28,237.22,0.84077699]
[1732715265135,20.48690759,237.29,237.22,0.84077699]
[1732715265340,20.48690759,237.29,237.22,21.32768458]
[1732715265542,20.48690759,237.32,237.24,20.48690759]
[1732715265726,20.48690759,237.33,237.25,21.32756843]
[1732715266043,20.48690759,237.33,237.25,25.54246843]
[1732715266740,20.48690759,237.32,237.25,25.54246843]
[1732715266940,20.48690759,237.33,237.25,25.54246843]
[1732715267135,20.48690759,237.31,237.24,20.48690759]
[1732715267358,20.48690759,237.29,237.22,20.48690759]
[1732715267529,20.48690759,237.28,237.21,24.70240759]
[1732715267724,20.48690759,237.27,237.21,4.2155]
[1732715268046,20.48690759,237.3,237.23,20.48690759]
[1732715268342,20.48690759,237.3,237.22,20.48690759]
[1732715268745,20.48690759,237.3,237.23,25.54292395]
[1732715269046,20.48690759,237.3,237.23,5.05601636]
[1732715269249,20.48690759,237.3,237.23,4.2153]
[1732715269419,20.48690759,237.31,237.24,20.48690759]
[1732715269622,20.48690759,237.33,237.25,21.32760535]
[1732715269920,20.48690759,237.38,237.3,20.48690759]
[1732715270122,20.48690759,237.42,237.35,20.48690759]
[1732715270453,6.5951,237.47,237.29,0.84031708]
[1732715270619,10.5287,237.45,237.29,0.84031708]
[1732715270938,4.2121,237.41,237.3,4.214]
[1732715271134,6.5951,237.47,237.3,4.214]
[1732715271341,4.2114,237.45,237.31,0.84044966]
[1732715271529,20.48690759,237.43,237.35,20.48690759]
[1732715271732,20.48690759,237.43,237.32,20.48690759]
[1732715271733,20.48690759,237.4,237.32,20.48690759]
[1732715272251,20.48690759,237.38,237.3,24.70090759]
[1732715272552,20.48690759,237.36,237.28,24.70120759]
[1732715272739,20.48690759,237.34,237.26,24.70160759]
[1732715273053,20.48690759,237.38,237.3,20.48690759]
[1732715273233,20.48690759,237.38,237.28,20.48690759]
[1732715273441,20.48690759,237.36,237.28,20.48690759]
[1732715274457,4.2111,237.47,237.35,20.48690759]
[1732715274628,20.48690759,237.45,237.36,4.213]
[1732715274957,20.48690759,237.43,237.36,4.213]
[1732715275545,20.48690759,237.41,237.34,26.4847]
[1732715276055,4.2116,237.44,237.34,26.4847]
[1732715276056,20.48690759,237.43,237.34,27.32503263]
[1732715276556,20.48690759,237.41,237.34,27.32503263]
[1732715276736,20.48690759,237.41,237.34,26.4847]
[1732715277253,20.48690759,237.44,237.36,20.48690759]
[1732715278853,20.48690759,237.44,237.36,24.69990759]
[1732715280336,20.48690759,237.46,237.36,24.69990759]
[1732715280845,20.48690759,237.44,237.36,24.69990759]
[1732715281238,20.48690759,237.42,237.34,42.75840759]
[1732715281457,20.48690759,237.4,237.34,20.4464]
[1732715282159,20.48690759,237.42,237.34,40.93330759]
[1732715283939,20.48690759,237.44,237.36,24.69990759]
[1732715284760,6.0928,237.36,237.24,20.48690759]
[1732715284960,4.7318988,237.37,237.29,20.48690759]
[1732715284961,0.5190988,237.37,237.29,20.48690759]
[1732715285948,4.7318988,237.37,237.29,20.48690759]
[1732715286332,20.48690759,237.36,237.27,20.48690759]
[1732715286549,20.48690759,237.32,237.23,20.48690759]
[1732715286769,20.48690759,237.28,237.19,20.48690759]
[1732715286941,20.48690759,237.26,237.17,24.70320759]
[1732715287137,20.48690759,237.28,237.19,20.48690759]
[1732715287459,20.48690759,237.3,237.21,20.48690759]
[1732715287645,20.48690759,237.34,237.25,20.48690759]
[1732715287958,20.48690759,237.36,237.27,20.48690759]
[1732715288553,24.69990759,237.36,237.27,20.48690759]
[1732715288765,20.48690759,237.3,237.23,4.2153]
[1732715288961,20.48690759,237.34,237.25,20.48690759]
[1732715289139,20.48690759,237.34,237.27,20.48690759]
[1732715289545,20.48690759,237.32,237.23,24.70220759]
[1732715289850,20.48690759,237.3,237.23,4.2153]
[1732715290063,24.69990759,237.36,237.19,10.5399]
[1732715290064,20.48690759,237.28,237.19,20.48690759]
[1732715290452,20.48690759,237.26,237.17,24.70320759]
[1732715291049,20.48690759,237.26,237.19,20.48690759]
[1732715291566,20.48690759,237.26,237.17,24.70320759]
[1732715291870,20.48690759,237.29,237.2,20.48690759]
[1732715292171,20.48690759,237.24,237.15,20.48690759]
[1732715292549,20.48690759,237.24,237.17,20.48690759]
[1732715293167,20.48690759,237.28,237.19,20.48690759]
[1732715293667,20.48690759,237.28,237.21,20.48690759]
[1732715293969,20.48690759,237.3,237.21,20.48690759]
[1732715294155,24.70100759,237.3,237.21,24.70250759]
[1732715294355,20.48690759,237.3,237.21,24.70250759]
[1732715294965,20.48690759,237.28,237.21,24.70250759]
[1732715295165,20.48690759,237.28,237.21,4.2156]
[1732715295477,20.48690759,237.32,237.25,20.48690759]
[1732715295680,0.5190988,237.37,237.29,20.48690759]
[1732715296183,0.5190988,237.37,237.31,20.48690759]
[1732715296364,0.5190988,237.37,237.3,4.214]
[1732715297178,20.48690759,237.34,237.28,4.2142]
[1732715297385,4.7318988,237.37,237.29,20.48690759]
[1732715297386,20.48690759,237.36,237.29,20.48690759]
[1732715298275,20.48690759,237.36,237.3,4.214]
[1732715298660,0.5190988,237.37,237.3,4.214]
[1732715298856,0.5190988,237.37,237.34,20.48690759]
[1732715299557,0.5190988,237.37,237.36,20.48690759]
[1732715299965,0.5190988,237.37,237.34,20.48690759]
[1732715300270,0.5190988,237.37,237.35,4.2131]
[1732715300682,0.5190988,237.37,237.36,20.48690759]
[1732715301787,0.5190988,237.37,237.33,4.2134]
[1732715302173,0.5190988,237.37,237.3,31.02200759]
[1732715302473,0.5190988,237.37,237.31,4.2138]
[1732715303488,0.5190988,237.37,237.33,20.48690759]
[1732715303670,0.5190988,237.37,237.35,20.48690759]
[1732715304365,0.5190988,237.37,237.36,4.213]
[1732715307986,0.5190988,237.37,237.35,4.2131]
[1732715308667,0.5190988,237.37,237.35,24.70000759]
[1732715313870,0.5190988,237.37,237.35,4.2131]
[1732715314194,0.5190988,237.37,237.33,20.48690759]
[1732715314195,0.5190988,237.37,237.31,20.48690759]
[1732715314391,0.5190988,237.37,237.32,12.7892099]
[1732715314589,0.5190988,237.37,237.34,12.7892099]
[1732715315084,0.5190988,237.37,237.32,12.7892099]
[1732715315784,0.5190988,237.37,237.33,4.2135]
[1732715318896,0.5190988,237.37,237.31,4.2138]
[1732715319872,13.3083087,237.37,237.31,4.2138]
[1732715320889,13.3083087,237.37,237.24,12.7892099]
[1732715320890,12.7892099,237.33,237.24,12.7892099]
[1732715321291,13.3083087,237.37,237.28,12.7892099]
[1732715322297,12.7892099,237.33,237.26,12.7892099]
[1732715322483,12.7892099,237.33,237.24,12.7892099]
[1732715322802,12.7892099,237.33,237.26,12.7892099]
[1732715322997,12.7892099,237.33,237.27,4.2146]
[1732715325179,12.7892099,237.33,237.25,4.2149]
[1732715325479,12.7892099,237.35,237.26,12.7892099]
[1732715325890,12.7892099,237.33,237.26,12.7892099]
[1732715326301,12.7892099,237.33,237.18,5.0]
[1732715326302,12.7892099,237.27,237.16,10.541]
[1732715326502,12.7892099,237.23,237.16,12.7892099]
[1732715326690,12.7892099,237.25,237.16,12.7892099]
[1732715327100,12.7892099,237.25,237.18,12.7892099]
[1732715327297,12.7892099,237.25,237.19,4.216]
[1732715327610,12.0894,237.31,237.19,4.216]
[1732715327611,12.7892099,237.27,237.19,4.216]
[1732715327785,6.0008,237.32,237.24,12.7892099]
[1732715328109,12.6084988,237.37,237.27,12.7892099]
[1732715328110,12.7892099,237.35,237.27,12.7892099]
[1732715328311,25.3977087,237.37,237.27,12.7892099]
[1732715328485,13.3083087,237.37,237.27,12.7892099]
[1732715329400,0.5190988,237.37,237.28,4.2144]
[1732715329696,12.7892099,237.36,237.27,12.7892099]
[1732715330097,12.7892099,237.36,237.29,12.7892099]
[1732715331417,12.7892099,237.36,237.3,4.214]
[1732715332102,12.7892099,237.36,237.27,12.7892099]
[1732715332410,12.7892099,237.36,237.28,4.2143]
[1732715333786,12.7892099,237.34,237.28,4.2143]
[1732715334478,12.7892099,237.32,237.26,4.2146]
[1732715335280,12.7892099,237.36,237.29,12.7892099]
[1732715335485,0.5190988,237.37,237.3,5.05452982]
[1732715335709,0.5190988,237.37,237.3,4.214]
[1732715336293,12.7892099,237.36,237.3,4.214]
[1732715337443,12.7892099,237.36,237.27,12.7892099]
[1732715337713,0.5190988,237.37,237.29,12.7892099]
[1732715339786,0.5190988,237.37,237.3,4.214]
[1732715340915,0.5190988,237.37,237.29,12.7892099]
[1732715340916,12.7892099,237.36,237.28,4.2142]
[1732715341995,12.7892099,237.36,237.29,12.7892099]
[1732715342320,0.5190988,237.37,237.29,12.7892099]
[1732715343405,0.5190988,237.37,237.3,4.214]
[1732715344009,0.5190988,237.37,237.31,12.7892099]
[1732715345619,0.5190988,237.37,237.32,4.2137]
[1732715345819,0.5190988,237.37,237.33,12.7892099]
[1732715346131,0.5190988,237.37,237.35,12.7892099]
[1732715347518,0.5190988,237.37,237.36,4.213]
[1732715349119,0.5190988,237.37,237.34,19.9627]
[1732715349298,0.5190988,237.37,237.33,4.2135]
[1732715349502,12.7892099,237.36,237.28,15.7318]
[1732715349921,12.7892099,237.34,237.28,19.9462]
[1732715350421,12.7892099,237.36,237.29,12.7892099]
[1732715350621,17.0022099,237.36,237.29,17.0034099]
[1732715350926,12.7892099,237.32,237.24,12.7892099]
[1732715351294,12.7892099,237.34,237.26,12.7892099]
[1732715351495,12.7892099,237.36,237.28,12.7892099]
[1732715351822,12.7892099,237.34,237.26,12.7892099]
[1732715352119,12.7892099,237.27,237.2,25.52630293]
[1732715352301,12.7892099,237.24,237.2,25.52630293]
[1732715352705,12.7892099,237.24,237.18,4.2161]
[1732715353924,12.7892099,237.24,237.16,4.2165]
[1732715355520,12.7892099,237.24,237.17,12.7892099]
[1732715356519,12.7892099,237.26,237.17,12.7892099]
[1732715356699,12.7892099,237.26,237.18,4.2162]
[1732715357713,12.7892099,237.24,237.16,4.2164]
[1732715357915,12.7892099,237.18,237.08,10.5447]
[1732715358125,12.7892099,237.2,237.13,12.7892099]
[1732715358302,6.2605,237.22,237.15,12.7892099]
[1732715358624,12.7892099,237.25,237.16,4.2165]
[1732715358926,12.7892099,237.25,237.17,12.7892099]
[1732715359299,12.7892099,237.27,237.19,12.7892099]
[1732715359807,6.4763,237.33,237.16,5.05744372]
[1732715359808,12.7892099,237.25,237.17,12.7892099]
[1732715360034,12.7892099,237.23,237.16,4.2165]
[1732715360325,12.7892099,237.25,237.16,4.2165]
[1732715361298,12.7892099,237.25,237.17,12.7892099]
[1732715362027,12.7892099,237.25,237.18,4.2162]
[1732715365528,12.7892099,237.23,237.16,4.2164]
[1732715366026,12.7892099,237.23,237.15,4.2167]
[1732715366437,12.7892099,237.21,237.13,17.0061099]
[1732715366736,12.7892099,237.21,237.13,4.2169]
[1732715367108,12.7892099,237.23,237.14,12.7892099]
[1732715368222,17.0046099,237.23,237.14,17.0060099]
[1732715368429,12.7892099,237.21,237.14,4.2168]
[1732715368727,12.7892099,237.19,237.12,4.2171]
[1732715370128,12.7892099,237.19,237.11,4.2174]
[1732715370930,4.0,237.12,237.11,4.2174]
[1732715372446,4.0,237.12,237.11,17.0066099]
[1732715373517,14.7483,237.32,237.11,41.18052221]
[1732715373731,12.7892099,237.28,237.2,12.7892099]
[1732715374616,12.7892099,237.26,237.16,12.7892099]
[1732715374815,14.7479,237.32,237.11,35.8482]
[1732715374816,12.7892099,237.22,237.11,14.761]
[1732715375133,12.7892099,237.2,237.12,12.7892099]
[1732715375310,12.7892099,237.22,237.12,12.7892099]
[1732715375714,12.7892099,237.22,237.13,4.217]
[1732715376817,20.5357,237.29,237.13,4.217]
[1732715377026,12.7892099,237.21,237.13,4.217]
[1732715377639,12.7892099,237.21,237.12,4.2172]
[1732715378145,4.2153,237.23,237.12,4.2172]
[1732715378439,12.7892099,237.21,237.12,4.2172]
[1732715378651,4.2151,237.24,237.13,12.7892099]
[1732715378837,12.7892099,237.23,237.13,12.7892099]
[1732715379722,4.2146,237.27,237.15,12.7892099]
[1732715379910,12.7892099,237.24,237.15,12.7892099]
[1732715380325,12.7892099,237.22,237.14,4.2169]
[1732715380818,12.7892099,237.2,237.14,4.2169]
[1732715381218,12.7892099,237.2,237.11,12.7892099]
[1732715381819,12.7892099,237.2,237.12,4.2172]
[1732715383822,12.7892099,237.16,237.1,4.2176]
[1732715384440,12.7892099,237.14,237.05,16.878193]
[1732715384745,12.7892099,237.14,237.06,4.2183]
[1732715385820,17.0061099,237.14,237.05,4.2185]
[1732715386542,12.7892099,237.09,237.02,4.2189]
[1732715387642,12.7892099,237.09,237.01,4.2192]
[1732715389344,12.7892099,237.05,236.99,4.2194]
[1732715389537,12.7892099,237.05,236.97,15.319]
[1732715389727,12.7892099,237.05,236.98,4.2197]
[1732715391628,12.7892099,237.05,236.96,12.7892099]
[1732715391824,12.7892099,237.05,236.97,4.2199]
[1732715392353,12.7892099,237.03,236.97,4.2199]
[1732715393949,12.7892099,237.05,236.97,4.2199]
[1732715395645,12.7892099,237.05,236.98,12.7892099]
[1732715396154,4.2167,237.15,237.04,12.7892099]
[1732715396455,6.5982,237.17,237.06,12.7892099]
[1732715396456,12.7892099,237.14,237.06,12.7892099]
[1732715396953,12.7892099,237.1,237.02,12.7892099]
[1732715397743,12.7892099,237.1,237.03,4.2188]
[1732715398533,12.7892099,237.12,237.04,12.7892099]
[1732715398732,12.7892099,237.14,237.06,12.7892099]
[1732715399831,12.7892099,237.12,237.04,17.0078099]
[1732715403551,12.7892099,237.1,237.02,17.0080099]
[1732715404141,12.7892099,237.08,237.02,4.2188]
[1732715404964,12.7892099,237.12,237.04,12.7892099]
[1732715405161,4.2161,237.19,237.1,12.7892099]
[1732715405368,4.214,237.3,237.17,12.7892099]
[1732715405545,12.7892099,237.27,237.17,12.7892099]
[1732715405965,12.7892099,237.29,237.21,12.7892099]
[1732715406561,12.7892099,237.27,237.19,12.7892099]
[1732715407058,4.2135,237.33,237.18,4.2162]
[1732715407059,12.7892099,237.25,237.18,4.2162]
[1732715407237,12.7892099,237.25,237.17,17.0055099]
[1732715407639,12.7892099,237.25,237.17,12.7892099]
[1732715408268,12.7892099,237.21,237.12,4.2172]
[1732715408434,12.7892099,237.21,237.13,12.7892099]
[1732715408961,12.7892099,237.23,237.15,12.7892099]
[1732715409258,12.7892099,237.23,237.16,4.2165]
[1732715410055,12.7892099,237.23,237.15,12.7892099]
[1732715410938,12.7892099,237.19,237.11,12.7892099]
[1732715411258,12.7892099,237.17,237.1,19.6357]
[1732715411463,12.7892099,237.17,237.1,15.4183]
[1732715411759,12.7892099,237.17,237.1,19.6358]
[1732715412736,14.7536,237.23,237.1,19.6358]
[1732715412936,12.7892099,237.21,237.11,12.7892099]
[1732715413367,4.2153,237.23,237.1,19.6358]
[1732715413368,12.7892099,237.17,237.1,19.6358]
[1732715413544,12.7892099,237.15,237.1,15.4183]
[1732715413732,12.7892099,237.17,237.1,15.4183]
[1732715413937,12.7892099,237.17,237.1,19.6358]
[1732715414156,12.7892099,237.19,237.1,19.6358]
[1732715414363,12.7892099,237.19,237.11,12.7892099]
[1732715414855,12.7892099,237.19,237.12,4.2172]
[1732715415052,12.7892099,237.17,237.12,4.2172]
[1732715415241,12.7892099,237.15,237.1,19.6358]
[1732715415434,4.216,237.19,237.1,19.6358]
[1732715415435,12.7892099,237.17,237.1,19.6358]
[1732715415653,17.0052099,237.19,237.1,19.6358]
[1732715416158,17.0052099,237.19,237.11,12.7892099]
[1732715416159,12.7892099,237.19,237.11,12.7892099]
[1732715416948,12.7892099,237.19,237.12,4.2172]
[1732715417547,12.7892099,237.17,237.1,19.6358]
[1732715420666,17.0057099,237.17,237.1,15.4183]
[1732715420962,4.2156,237.21,237.1,19.6358]
[1732715421168,12.7892099,237.18,237.1,19.6358]
[1732715421961,12.7892099,237.18,237.1,15.4183]
[1732715422553,4.2163,237.17,237.09,12.7892099]
[1732715423265,12.7892099,237.16,237.07,12.7892099]
[1732715423571,12.7892099,237.24,237.15,12.7892099]
[1732715423745,12.7892099,237.26,237.17,12.7892099]
[1732715424577,17.0040099,237.26,237.17,17.0054099]
[1732715426151,12.7892099,237.24,237.12,10.543]
[1732715426357,12.7892099,237.24,237.14,12.7892099]
[1732715427372,12.7892099,237.22,237.15,4.2167]
[1732715427554,12.7892099,237.24,237.15,4.2167]
[1732715427870,12.7892099,237.26,237.16,12.7892099]
[1732715428169,12.7892099,237.26,237.18,12.7892099]
[1732715429171,12.7892099,237.26,237.18,17.0052099]
[1732715429564,17.0039099,237.26,237.18,17.0052099]
[1732715430445,12.7892099,237.26,237.18,17.0052099]
[1732715431774,12.7892099,237.28,237.19,16.2178]
[1732715431959,12.7892099,237.35,237.26,12.7892099]
[1732715432946,12.7892099,237.35,237.27,4.2146]
[1732715433150,14.3083087,237.37,237.28,12.7892099]
[1732715433345,14.3083087,237.37,237.27,4.2146]
[1732715433346,14.3083087,237.37,237.3,12.7892099]
[1732715434074,14.3083087,237.37,237.28,12.7892099]
[1732715434371,14.3083087,237.37,237.29,4.2142]
[1732715434756,14.3083087,237.37,237.25,4.2149]
[1732715434757,12.7892099,237.33,237.25,4.2149]
[1732715435750,17.0027099,237.33,237.25,4.2149]
[1732715436677,17.0027099,237.33,237.21,6.2749]
[1732715436678,12.7892099,237.31,237.23,4.2151]
[1732715438762,12.7892099,237.29,237.23,4.2151]
[1732715438963,12.7892099,237.29,237.21,10.4904]
[1732715440087,12.7892099,237.29,237.21,4.2155]
[1732715441168,1.5190988,237.37,237.26,12.7892099]
[1732715441361,14.3083087,237.37,237.28,12.7892099]
[1732715441880,12.7892099,237.35,237.26,12.7892099]
[1732715442087,12.7892099,237.33,237.24,12.7892099]
[1732715442394,5.7318988,237.37,237.22,12.7892099]
[1732715442395,12.7892099,237.31,237.22,12.7892099]
[1732715442583,11.10265595,237.31,237.22,12.7892099]
[1732715442884,11.10265595,237.31,237.23,4.2153]
[1732715444292,12.7892099,237.36,237.24,12.7892099]
[1732715444293,12.7892099,237.33,237.24,12.7892099]
[1732715445568,17.0029099,237.33,237.24,17.0042099]
[1732715445870,4.2137,237.33,237.24,17.0042099]
[1732715446084,12.7892099,237.32,237.24,17.0042099]
[1732715447873,12.0510988,237.37,237.26,12.7892099]
[1732715447874,12.7892099,237.34,237.26,12.7892099]
[1732715448192,12.7892099,237.36,237.26,12.7892099]
[1732715448392,12.7892099,237.32,237.24,4.215]
[1732715449267,12.7892099,237.28,237.21,4.2156]
[1732715449686,12.7892099,237.32,237.22,12.7892099]
[1732715450088,12.7892099,237.32,237.23,4.2153]
[1732715450283,17.0022099,237.36,237.27,12.7892099]
[1732715450583,12.7892099,237.36,237.27,12.7892099]
[1732715451165,5.7319988,237.37,237.27,12.7892099]
[1732715451572,12.7892099,237.36,237.27,12.7892099]
[1732715451772,17.0023099,237.36,237.28,4.2144]
[1732715456286,12.4019151,237.36,237.27,8.1888151]
[1732715457580,12.4019151,237.36,237.28,4.2144]
[1732715461791,1.5190988,237.37,237.29,8.1888151]
[1732715461991,1.5190988,237.37,237.34,8.1888151]
[1732715462194,1.5190988,237.37,237.36,8.1888151]